[Event "*** Titled Tuesday 3|2 Blitz"]
[Site "Chess.com"]
[Date "2016.08.02"]
[Round "6"]
[White "Sven_Tica"]
[Black "ajkom197"]
[Result "1-0"]
[WhiteElo "2424"]
[BlackElo "2205"]
[TimeControl "180+2"]
[EndTime "12:21:00 PDT"]
[Termination "Sven_Tica won by resignation"]

1. d4 {[%clk 0:03:01.9]} 1... d5 {[%clk 0:02:59.8]} 2. c4 {[%clk 0:03:01.9]}
2... c6 {[%clk 0:03:00.8]} 3. cxd5 {[%clk 0:03:02.2]} 3... cxd5 {[%clk
0:03:01.7]} 4. Bf4 {[%clk 0:03:04.1]} 4... Nf6 {[%clk 0:03:02.7]} 5. e3 {[%clk
0:03:05.1]} 5... Nc6 {[%clk 0:03:03.7]} 6. Nc3 {[%clk 0:03:06.4]} 6... e6 {[%clk
0:03:03.8]} 7. Rc1 {[%clk 0:03:05.9]} 7... Bd6 {[%clk 0:03:01.2]} 8. Bxd6 {[%clk
0:03:06]} 8... Qxd6 {[%clk 0:03:03.1]} 9. f4 {[%clk 0:03:07.6]} 9... O-O {[%clk
0:03:03.1]} 10. Nf3 {[%clk 0:03:08.6]} 10... Bd7 {[%clk 0:03:02.4]} 11. Bd3
{[%clk 0:03:09.8]} 11... a6 {[%clk 0:03:00.8]} 12. O-O {[%clk 0:03:08.1]} 12...
Rac8 {[%clk 0:02:58.9]} 13. Ne5 {[%clk 0:03:08.7]} 13... Nb4 {[%clk 0:02:57.9]}
14. Bb1 {[%clk 0:03:08.4]} 14... Rc7 {[%clk 0:02:52.8]} 15. g4 {[%clk
0:02:59.6]} 15... g6 {[%clk 0:02:52.4]} 16. g5 {[%clk 0:02:46.3]} 16... Nh5
{[%clk 0:02:52.2]} 17. Rf3 {[%clk 0:02:45.9]} 17... f6 {[%clk 0:02:45.5]} 18.
gxf6 {[%clk 0:02:43.2]} 18... Rxf6 {[%clk 0:02:44.9]} 19. Rh3 {[%clk 0:02:40.1]}
19... Be8 {[%clk 0:02:42.8]} 20. Qg4 {[%clk 0:02:13.6]} 20... Rg7 {[%clk
0:02:25.7]} 21. Kh1 {[%clk 0:02:13.7]} 21... Nc6 {[%clk 0:02:21.3]} 22. Rg1
{[%clk 0:02:10.9]} 22... Qb4 {[%clk 0:02:19.6]} 23. Rxh5 {[%clk 0:02:03.6]}
23... Qxb2 {[%clk 0:02:18.6]} 24. Na4 {[%clk 0:01:54.8]} 24... Qf2 {[%clk
0:02:14.9]} 25. Rh3 {[%clk 0:01:50.9]} 25... Nxd4 {[%clk 0:02:07.7]} 26. Qd1
{[%clk 0:01:34.9]} 26... Ne2 {[%clk 0:01:48.8]} 27. Rg2 {[%clk 0:01:17.9]} 27...
Bxa4 {[%clk 0:01:48.3]} 28. Qxe2 {[%clk 0:01:18.7]} 28... Qxe2 {[%clk
0:01:28.7]} 29. Rxe2 {[%clk 0:01:20.6]} 29... Rc7 {[%clk 0:01:28.6]} 30. Kg2
{[%clk 0:01:17.3]} 30... Rf8 {[%clk 0:01:25.9]} 31. Rf3 {[%clk 0:01:11.2]} 31...
Rfc8 {[%clk 0:01:20.6]} 32. Rf1 {[%clk 0:01:12.4]} 32... Rc1 {[%clk 0:01:19.6]}
33. Rxc1 {[%clk 0:01:10.1]} 33... Rxc1 {[%clk 0:01:21.5]} 34. Bd3 {[%clk
0:01:11.7]} 34... Kg7 {[%clk 0:01:19.1]} 35. h4 {[%clk 0:01:12.6]} 35... Rc3
{[%clk 0:01:07.2]} 36. Rd2 {[%clk 0:01:12.6]} 36... h5 {[%clk 0:01:02.7]} 37.
Kf2 {[%clk 0:01:05.5]} 37... Be8 {[%clk 0:01:02.8]} 38. Kf3 {[%clk 0:01:01.5]}
38... Kf6 {[%clk 0:01:01.3]} 39. Rg2 {[%clk 0:01:00.9]} 39... b5 {[%clk
0:00:49.5]} 40. Bxg6 {[%clk 0:00:56]} 40... Bc6 {[%clk 0:00:50.2]} 41. Nxc6
{[%clk 0:00:53.2]} 41... Rxc6 {[%clk 0:00:52.1]} 42. Bxh5 {[%clk 0:00:54.7]}
42... Rc3 {[%clk 0:00:53.8]} 43. Be8 {[%clk 0:00:53.9]} 43... d4 {[%clk
0:00:54.5]} 44. Re2 {[%clk 0:00:53.5]} 44... e5 {[%clk 0:00:54.9]} 45. Ke4
{[%clk 0:00:51.4]} 45... Rxe3+ {[%clk 0:00:43.2]} 46. Rxe3 {[%clk 0:00:53.3]}
46... dxe3 {[%clk 0:00:45]} 47. fxe5+ {[%clk 0:00:54]} 47... Ke6 {[%clk
0:00:46]} 48. Bh5 {[%clk 0:00:55]} 1-0

[Event "*** Titled Tuesday 3|2 Blitz"]
[Site "Chess.com"]
[Date "2016.08.02"]
[Round "6"]
[White "Hieronymus00"]
[Black "Caisachess"]
[Result "1-0"]
[WhiteElo "2141"]
[BlackElo "2171"]
[TimeControl "180+2"]
[EndTime "12:21:00 PDT"]
[Termination "Hieronymus00 won by checkmate"]

1. e4 {[%clk 0:03:01.9]} 1... e5 {[%clk 0:00:32.1]} 2. Nf3 {[%clk 0:03:01.4]}
2... Nc6 {[%clk 0:00:33.3]} 3. Bb5 {[%clk 0:03:01.8]} 3... f5 {[%clk 0:00:34.4]}
4. d3 {[%clk 0:03:01.3]} 4... fxe4 {[%clk 0:00:35.7]} 5. dxe4 {[%clk 0:03:02.2]}
5... Nf6 {[%clk 0:00:37.6]} 6. O-O {[%clk 0:02:32.8]} 6... Bc5 {[%clk
0:00:38.4]} 7. Bxc6 {[%clk 0:02:23.4]} 7... bxc6 {[%clk 0:00:38.4]} 8. Nxe5
{[%clk 0:02:24.1]} 8... O-O {[%clk 0:00:39.1]} 9. Nc3 {[%clk 0:02:17.4]} 9...
Qe8 {[%clk 0:00:39]} 10. Nd3 {[%clk 0:02:17.3]} 10... Nxe4 {[%clk 0:00:39]} 11.
Nxe4 {[%clk 0:02:14.7]} 11... Qxe4 {[%clk 0:00:38.9]} 12. Nxc5 {[%clk
0:02:15.7]} 12... Qf5 {[%clk 0:00:39.8]} 13. Nd3 {[%clk 0:02:13.6]} 13... d5
{[%clk 0:00:41.1]} 14. Qe2 {[%clk 0:02:06.1]} 14... Bd7 {[%clk 0:00:39.8]} 15.
Be3 {[%clk 0:02:02.1]} 15... Rae8 {[%clk 0:00:39.2]} 16. Qd2 {[%clk 0:02:03.1]}
16... Qg6 {[%clk 0:00:39.2]} 17. Kh1 {[%clk 0:02:02.2]} 17... Re4 {[%clk
0:00:37]} 18. Rae1 {[%clk 0:01:50.1]} 18... Rh4 {[%clk 0:00:35.9]} 19. g3 {[%clk
0:01:24.3]} 19... Bg4 {[%clk 0:00:19.6]} 20. f4 {[%clk 0:01:17.4]} 20... Rh3
{[%clk 0:00:19.6]} 21. Bc5 {[%clk 0:01:13.5]} 21... Rb8 {[%clk 0:00:17.8]} 22.
Ne5 {[%clk 0:01:10.2]} 22... Qh5 {[%clk 0:00:16.3]} 23. Nxg4 {[%clk 0:01:10.4]}
23... Qxg4 {[%clk 0:00:16.7]} 24. Qe2 {[%clk 0:01:11]} 24... Qg6 {[%clk
0:00:15.8]} 25. Qe6+ {[%clk 0:01:11.4]} 25... Qxe6 {[%clk 0:00:15.6]} 26. Rxe6
{[%clk 0:01:13.3]} 26... Rxb2 {[%clk 0:00:15.9]} 27. Rf2 {[%clk 0:01:08.4]}
27... Rxa2 {[%clk 0:00:15.7]} 28. Rxc6 {[%clk 0:01:08.6]} 28... Rh5 {[%clk
0:00:14]} 29. Rxc7 {[%clk 0:01:09.3]} 29... a5 {[%clk 0:00:12.4]} 30. Re2 {[%clk
0:01:09.4]} 30... h6 {[%clk 0:00:12.7]} 31. Kg2 {[%clk 0:00:57.4]} 31... Rf5
{[%clk 0:00:13.3]} 32. Kf3 {[%clk 0:00:52.6]} 32... a4 {[%clk 0:00:10.8]} 33.
Ree7 {[%clk 0:00:51.9]} 33... g5 {[%clk 0:00:08.9]} 34. Rg7+ {[%clk 0:00:51.2]}
34... Kh8 {[%clk 0:00:09]} 35. Rh7+ {[%clk 0:00:52.4]} 35... Kg8 {[%clk
0:00:09.8]} 36. Rcg7# {[%clk 0:00:53.4]} 1-0

[Event "*** Titled Tuesday 3|2 Blitz"]
[Site "Chess.com"]
[Date "2016.08.02"]
[Round "6"]
[White "FearlessKing64"]
[Black "wonderfultime"]
[Result "0-1"]
[WhiteElo "2064"]
[BlackElo "2605"]
[TimeControl "180+2"]
[EndTime "12:21:10 PDT"]
[Termination "wonderfultime won by resignation"]

1. e4 {[%clk 0:03:01.9]} 1... c5 {[%clk 0:03:01]} 2. Nf3 {[%clk 0:03:01.8]} 2...
d6 {[%clk 0:03:02.5]} 3. d4 {[%clk 0:03:02.7]} 3... cxd4 {[%clk 0:03:04.4]} 4.
Nxd4 {[%clk 0:03:04.2]} 4... Nf6 {[%clk 0:03:06]} 5. f3 {[%clk 0:03:04.4]} 5...
Nc6 {[%clk 0:03:01.2]} 6. c4 {[%clk 0:03:04.4]} 6... e5 {[%clk 0:02:48.4]} 7.
Nc2 {[%clk 0:03:04.2]} 7... Be6 {[%clk 0:02:48.8]} 8. Be3 {[%clk 0:02:56.7]}
8... Be7 {[%clk 0:02:49.7]} 9. Qd2 {[%clk 0:02:57.3]} 9... O-O {[%clk
0:02:49.7]} 10. Nc3 {[%clk 0:02:57]} 10... Nd7 {[%clk 0:02:49.4]} 11. Be2 {[%clk
0:02:53.1]} 11... Rc8 {[%clk 0:02:45.3]} 12. O-O {[%clk 0:02:51.1]} 12... Re8
{[%clk 0:02:17.7]} 13. Rfd1 {[%clk 0:02:50.6]} 13... a6 {[%clk 0:02:18]} 14.
Rac1 {[%clk 0:02:47.9]} 14... Bf8 {[%clk 0:02:18.7]} 15. Bf1 {[%clk 0:02:46.7]}
15... Nc5 {[%clk 0:02:12.3]} 16. b4 {[%clk 0:02:38]} 16... Nd7 {[%clk
0:02:12.1]} 17. b5 {[%clk 0:02:27.5]} 17... Na5 {[%clk 0:02:06.9]} 18. bxa6
{[%clk 0:02:23.2]} 18... bxa6 {[%clk 0:02:08.1]} 19. Nd5 {[%clk 0:02:17.8]}
19... Nxc4 {[%clk 0:02:09.2]} 20. Bxc4 {[%clk 0:02:06.7]} 20... Rxc4 {[%clk
0:02:11.1]} 21. Na3 {[%clk 0:02:06]} 21... Rxc1 {[%clk 0:02:07.6]} 22. Rxc1
{[%clk 0:02:01.9]} 22... Nc5 {[%clk 0:02:09.5]} 23. Nc4 {[%clk 0:01:50.9]} 23...
f6 {[%clk 0:02:07.9]} 24. Ncb6 {[%clk 0:01:34.3]} 24... Bf7 {[%clk 0:02:04.5]}
25. Qe2 {[%clk 0:01:17.8]} 25... Qb8 {[%clk 0:01:45.7]} 26. Qc2 {[%clk 0:00:54]}
26... Qb7 {[%clk 0:01:43.2]} 27. Rb1 {[%clk 0:00:54.6]} 27... Qc6 {[%clk
0:01:42.8]} 28. h3 {[%clk 0:00:43.6]} 28... Rb8 {[%clk 0:01:44]} 29. a4 {[%clk
0:00:37.3]} 29... a5 {[%clk 0:01:31.6]} 30. Rb5 {[%clk 0:00:30.6]} 30... h5
{[%clk 0:01:26.4]} 31. Bd2 {[%clk 0:00:23]} 31... Qe8 {[%clk 0:01:21.1]} 32.
Bxa5 {[%clk 0:00:22.5]} 32... Kh8 {[%clk 0:01:15.5]} 33. Bb4 {[%clk 0:00:23.2]}
33... Bxd5 {[%clk 0:01:03.6]} 34. exd5 {[%clk 0:00:18]} 34... Nxa4 {[%clk
0:01:04.9]} 35. Qc6 {[%clk 0:00:09]} 35... Qxc6 {[%clk 0:00:59.4]} 36. dxc6
{[%clk 0:00:10.9]} 36... Nxb6 {[%clk 0:01:00.6]} 37. c7 {[%clk 0:00:12.1]} 37...
Rc8 {[%clk 0:01:00.8]} 38. Rxb6 {[%clk 0:00:13.6]} 38... Rxc7 {[%clk 0:01:02.4]}
39. Rb8 {[%clk 0:00:14.8]} 39... Kg8 {[%clk 0:00:58.6]} 40. Rxf8+ {[%clk
0:00:12.2]} 40... Kxf8 {[%clk 0:01:00.5]} 41. Bxd6+ {[%clk 0:00:13.6]} 41... Re7
{[%clk 0:01:02.4]} 42. Kf2 {[%clk 0:00:11.6]} 42... h4 {[%clk 0:01:03.2]} 43.
Ke3 {[%clk 0:00:12]} 43... Kf7 {[%clk 0:01:03.6]} 44. Bxe7 {[%clk 0:00:13.3]}
44... Kxe7 {[%clk 0:01:05.5]} 45. Ke4 {[%clk 0:00:14.8]} 45... Ke6 {[%clk
0:01:07]} 46. f4 {[%clk 0:00:16.3]} 46... f5+ {[%clk 0:01:08.5]} 0-1

[Event "*** Titled Tuesday 3|2 Blitz"]
[Site "Chess.com"]
[Date "2016.08.02"]
[Round "6"]
[White "MyleneFarmer"]
[Black "fastestmindalive"]
[Result "0-1"]
[WhiteElo "2361"]
[BlackElo "2419"]
[TimeControl "180+2"]
[EndTime "12:21:40 PDT"]
[Termination "fastestmindalive won by checkmate"]

1. Nf3 {[%clk 0:03:01.9]} 1... Nf6 {[%clk 0:03:00.5]} 2. g3 {[%clk 0:03:01.4]}
2... d6 {[%clk 0:02:44]} 3. Bg2 {[%clk 0:03:02.5]} 3... e5 {[%clk 0:02:45.1]} 4.
O-O {[%clk 0:03:04]} 4... Nc6 {[%clk 0:02:45.1]} 5. d4 {[%clk 0:03:05.1]} 5...
e4 {[%clk 0:02:44.5]} 6. Ng5 {[%clk 0:03:06]} 6... Bf5 {[%clk 0:02:44.9]} 7. c4
{[%clk 0:03:05.6]} 7... h6 {[%clk 0:02:45.1]} 8. Nh3 {[%clk 0:03:06.6]} 8... g5
{[%clk 0:02:45.8]} 9. f3 {[%clk 0:03:05.4]} 9... Qd7 {[%clk 0:02:44.5]} 10. Nf2
{[%clk 0:03:06.4]} 10... exf3 {[%clk 0:02:43.7]} 11. exf3 {[%clk 0:03:07.7]}
11... O-O-O {[%clk 0:02:38.4]} 12. Nc3 {[%clk 0:03:08.9]} 12... Bg7 {[%clk
0:02:38.1]} 13. Be3 {[%clk 0:02:57.8]} 13... Rde8 {[%clk 0:02:38.9]} 14. Re1
{[%clk 0:02:59.1]} 14... Nh7 {[%clk 0:02:35.8]} 15. Qd2 {[%clk 0:02:40.2]} 15...
h5 {[%clk 0:02:34.8]} 16. a3 {[%clk 0:02:30.9]} 16... h4 {[%clk 0:02:35.6]} 17.
g4 {[%clk 0:02:32.1]} 17... Bg6 {[%clk 0:02:36.8]} 18. h3 {[%clk 0:02:30.1]}
18... f5 {[%clk 0:02:37.8]} 19. gxf5 {[%clk 0:01:59.8]} 19... Bxf5 {[%clk
0:02:39.7]} 20. Ng4 {[%clk 0:01:59.9]} 20... Na5 {[%clk 0:02:33.1]} 21. Ne4
{[%clk 0:01:37.8]} 21... Nb3 {[%clk 0:02:10.5]} 22. Qb4 {[%clk 0:01:39]} 22...
Nxa1 {[%clk 0:02:10.5]} 23. Rxa1 {[%clk 0:01:40.9]} 23... Rxe4 {[%clk
0:01:48.1]} 24. fxe4 {[%clk 0:01:41.9]} 24... Bxg4 {[%clk 0:01:49.2]} 25. e5
{[%clk 0:01:20.6]} 25... c6 {[%clk 0:01:36.6]} 26. Qxd6 {[%clk 0:00:33.9]} 26...
Bxh3 {[%clk 0:01:28.9]} 27. Rf1 {[%clk 0:00:25.2]} 27... Bxg2 {[%clk 0:01:25.1]}
28. Qxd7+ {[%clk 0:00:26.2]} 28... Kxd7 {[%clk 0:01:24.5]} 29. Rf7+ {[%clk
0:00:28.1]} 29... Ke6 {[%clk 0:01:21.8]} 30. Rxg7 {[%clk 0:00:29.6]} 30... Be4
{[%clk 0:01:22.7]} 31. Bxg5 {[%clk 0:00:25.4]} 31... Nxg5 {[%clk 0:01:22.7]} 32.
Rxg5 {[%clk 0:00:26.4]} 32... Rd8 {[%clk 0:01:16.8]} 33. Kf2 {[%clk 0:00:22]}
33... Rxd4 {[%clk 0:01:15.2]} 34. Ke3 {[%clk 0:00:22.9]} 34... Rxc4 {[%clk
0:01:15.8]} 35. Rg4 {[%clk 0:00:24]} 35... Bd5 {[%clk 0:01:15.7]} 36. Rg6+
{[%clk 0:00:25.2]} 36... Kxe5 {[%clk 0:01:16.3]} 37. Rg5+ {[%clk 0:00:26.8]}
37... Kf6 {[%clk 0:01:16.5]} 38. Rh5 {[%clk 0:00:28.1]} 38... Re4+ {[%clk
0:01:17.2]} 39. Kd3 {[%clk 0:00:28.9]} 39... Kg6 {[%clk 0:01:17.8]} 40. Rh8
{[%clk 0:00:30.2]} 40... Rg4 {[%clk 0:01:16.4]} 41. b4 {[%clk 0:00:30]} 41... b6
{[%clk 0:01:16]} 42. a4 {[%clk 0:00:29.6]} 42... a5 {[%clk 0:01:16.9]} 43. bxa5
{[%clk 0:00:30.8]} 43... bxa5 {[%clk 0:01:18.4]} 44. Ke3 {[%clk 0:00:32.3]}
44... Re4+ {[%clk 0:01:18.9]} 45. Kf2 {[%clk 0:00:32.9]} 45... Rxa4 {[%clk
0:01:20.2]} 46. Ke3 {[%clk 0:00:32.9]} 46... Kg7 {[%clk 0:01:20.8]} 47. Rh5
{[%clk 0:00:33.4]} 47... Re4+ {[%clk 0:01:21.6]} 48. Kf2 {[%clk 0:00:34.4]}
48... Rf4+ {[%clk 0:01:21.7]} 49. Ke3 {[%clk 0:00:35.4]} 49... Rf3+ {[%clk
0:01:22.7]} 50. Kd4 {[%clk 0:00:36.6]} 50... Rh3 {[%clk 0:01:23.2]} 51. Ke5
{[%clk 0:00:36.3]} 51... Rh1 {[%clk 0:01:24.3]} 52. Rg5+ {[%clk 0:00:37.7]}
52... Kf7 {[%clk 0:01:25.7]} 53. Rh5 {[%clk 0:00:38.6]} 53... h3 {[%clk
0:01:26.8]} 54. Kd6 {[%clk 0:00:40.2]} 54... h2 {[%clk 0:01:27.5]} 55. Kc7
{[%clk 0:00:41]} 55... a4 {[%clk 0:01:28.3]} 56. Rh3 {[%clk 0:00:41.1]} 56... a3
{[%clk 0:01:28.9]} 57. Rxa3 {[%clk 0:00:40.4]} 57... Ra1 {[%clk 0:01:27.9]} 58.
Rxa1 {[%clk 0:00:41]} 58... h1=Q {[%clk 0:01:29.1]} 59. Ra7 {[%clk 0:00:42.1]}
59... Ke6 {[%clk 0:01:29.3]} 60. Kb6 {[%clk 0:00:42.2]} 60... Qb1+ {[%clk
0:01:30.1]} 61. Kc5 {[%clk 0:00:43.6]} 61... Qb5+ {[%clk 0:01:30.2]} 62. Kd4
{[%clk 0:00:45.3]} 62... Qb6+ {[%clk 0:01:31.7]} 63. Kc3 {[%clk 0:00:47]} 63...
Qxa7 {[%clk 0:01:33]} 64. Kb4 {[%clk 0:00:48.4]} 64... c5+ {[%clk 0:01:33.7]}
65. Kb5 {[%clk 0:00:49.7]} 65... Qb7+ {[%clk 0:01:34.7]} 66. Ka5 {[%clk
0:00:51.1]} 66... Bc4 {[%clk 0:01:31]} 67. Ka4 {[%clk 0:00:52.4]} 67... Qb4#
{[%clk 0:01:32]} 0-1

[Event "*** Titled Tuesday 3|2 Blitz"]
[Site "Chess.com"]
[Date "2016.08.02"]
[Round "6"]
[White "Balandel"]
[Black "awb2001"]
[Result "1-0"]
[WhiteElo "2337"]
[BlackElo "2310"]
[TimeControl "180+2"]
[EndTime "12:21:42 PDT"]
[Termination "Balandel won by resignation"]

1. e4 {[%clk 0:03:01.9]} 1... c5 {[%clk 0:03:00.4]} 2. Nf3 {[%clk 0:03:02.6]}
2... Nc6 {[%clk 0:03:01.5]} 3. d4 {[%clk 0:03:03.4]} 3... cxd4 {[%clk
0:03:03.4]} 4. Nxd4 {[%clk 0:03:04.7]} 4... g6 {[%clk 0:03:05.1]} 5. Nc3 {[%clk
0:03:01.2]} 5... Bg7 {[%clk 0:03:06.1]} 6. Be3 {[%clk 0:03:02.9]} 6... Nf6
{[%clk 0:03:07.8]} 7. f3 {[%clk 0:03:02.7]} 7... O-O {[%clk 0:03:03.7]} 8. g4
{[%clk 0:02:58.1]} 8... Qb6 {[%clk 0:02:53]} 9. Ncb5 {[%clk 0:01:35.6]} 9... Qd8
{[%clk 0:01:43.1]} 10. g5 {[%clk 0:01:27.7]} 10... Nh5 {[%clk 0:01:44.2]} 11.
Qd2 {[%clk 0:01:23.7]} 11... d5 {[%clk 0:01:42.4]} 12. O-O-O {[%clk 0:01:08.8]}
12... Nxd4 {[%clk 0:01:37.4]} 13. Bxd4 {[%clk 0:01:04.8]} 13... dxe4 {[%clk
0:01:32.7]} 14. fxe4 {[%clk 0:01:02.6]} 14... Bg4 {[%clk 0:01:30.6]} 15. Be2
{[%clk 0:00:48.7]} 15... Bxe2 {[%clk 0:01:25.7]} 16. Qxe2 {[%clk 0:00:49.1]}
16... Qa5 {[%clk 0:01:25.2]} 17. Bxg7 {[%clk 0:00:45.7]} 17... Kxg7 {[%clk
0:01:25.1]} 18. Nc3 {[%clk 0:00:46.4]} 18... Rad8 {[%clk 0:01:21.7]} 19. Qg4
{[%clk 0:00:34.3]} 19... b5 {[%clk 0:01:00.9]} 20. a3 {[%clk 0:00:29.2]} 20...
b4 {[%clk 0:01:01.5]} 21. axb4 {[%clk 0:00:27]} 21... Qxb4 {[%clk 0:00:59.8]}
22. Nd5 {[%clk 0:00:13.9]} 22... Qa5 {[%clk 0:00:55.1]} 23. Kb1 {[%clk
0:00:13.6]} 23... Rb8 {[%clk 0:00:55.6]} 24. e5 {[%clk 0:00:09.1]} 24... Rfd8
{[%clk 0:00:44.7]} 25. Nxe7 {[%clk 0:00:08.1]} 25... Rxd1+ {[%clk 0:00:43.7]}
26. Rxd1 {[%clk 0:00:06.4]} 26... Qxe5 {[%clk 0:00:36.8]} 27. Qd4 {[%clk
0:00:05.6]} 27... Rb5 {[%clk 0:00:23.7]} 28. Qxe5+ {[%clk 0:00:06.1]} 28... Rxe5
{[%clk 0:00:24.4]} 29. Nc6 {[%clk 0:00:07.2]} 29... Rxg5 {[%clk 0:00:23.8]} 30.
Nxa7 {[%clk 0:00:08.8]} 30... Nf4 {[%clk 0:00:21.4]} 31. b4 {[%clk 0:00:08.3]}
31... Nd5 {[%clk 0:00:22.5]} 32. Rd4 {[%clk 0:00:07.7]} 32... Nb6 {[%clk
0:00:19.7]} 33. c4 {[%clk 0:00:08.8]} 33... Rg1+ {[%clk 0:00:17.1]} 34. Kb2
{[%clk 0:00:09.7]} 34... Rg2+ {[%clk 0:00:17.1]} 35. Kb3 {[%clk 0:00:11.2]}
35... Rxh2 {[%clk 0:00:18.5]} 36. c5 {[%clk 0:00:12.7]} 36... Rh3+ {[%clk
0:00:20]} 37. Ka2 {[%clk 0:00:12.8]} 37... Na4 {[%clk 0:00:19.8]} 38. c6 {[%clk
0:00:14.3]} 38... Rc3 {[%clk 0:00:19.8]} 39. b5 {[%clk 0:00:14.4]} 39... Kf6
{[%clk 0:00:21]} 40. Rxa4 {[%clk 0:00:15.5]} 40... Ke6 {[%clk 0:00:20.9]} 41. b6
{[%clk 0:00:17.1]} 41... Kd6 {[%clk 0:00:20.3]} 42. c7 {[%clk 0:00:18.7]} 42...
f5 {[%clk 0:00:20.4]} 43. c8=Q {[%clk 0:00:20.2]} 43... Rxc8 {[%clk 0:00:20.4]}
44. Nxc8+ {[%clk 0:00:21.8]} 44... Kc6 {[%clk 0:00:21.8]} 45. Rb4 {[%clk
0:00:23.3]} 1-0

[Event "*** Titled Tuesday 3|2 Blitz"]
[Site "Chess.com"]
[Date "2016.08.02"]
[Round "6"]
[White "Ginger_GM"]
[Black "workhard91"]
[Result "0-1"]
[WhiteElo "2396"]
[BlackElo "2397"]
[TimeControl "180+2"]
[EndTime "12:21:50 PDT"]
[Termination "workhard91 won by resignation"]

1. d4 {[%clk 0:03:01.9]} 1... Nf6 {[%clk 0:03:00.9]} 2. c4 {[%clk 0:03:02.5]}
2... e6 {[%clk 0:02:58.2]} 3. Nf3 {[%clk 0:03:03.1]} 3... Bb4+ {[%clk
0:02:59.2]} 4. Nbd2 {[%clk 0:03:03.2]} 4... O-O {[%clk 0:02:58.5]} 5. a3 {[%clk
0:03:02.5]} 5... Be7 {[%clk 0:03:00.1]} 6. e4 {[%clk 0:03:03.1]} 6... d5 {[%clk
0:03:01.5]} 7. e5 {[%clk 0:03:02.1]} 7... Nfd7 {[%clk 0:03:02.4]} 8. Qc2 {[%clk
0:02:59.5]} 8... c5 {[%clk 0:02:56.7]} 9. Bd3 {[%clk 0:02:57.6]} 9... h6 {[%clk
0:02:57.8]} 10. O-O {[%clk 0:02:54.8]} 10... Nc6 {[%clk 0:02:57.4]} 11. Re1
{[%clk 0:02:47.6]} 11... cxd4 {[%clk 0:02:43.4]} 12. cxd5 {[%clk 0:02:41.3]}
12... exd5 {[%clk 0:02:45.3]} 13. Nb3 {[%clk 0:02:39.9]} 13... Qb6 {[%clk
0:02:03.2]} 14. e6 {[%clk 0:02:13.9]} 14... fxe6 {[%clk 0:01:54.1]} 15. Rxe6
{[%clk 0:02:07.5]} 15... Nf6 {[%clk 0:01:53]} 16. Re1 {[%clk 0:02:01.9]} 16...
Ne4 {[%clk 0:01:19.4]} 17. Bxe4 {[%clk 0:01:57]} 17... dxe4 {[%clk 0:01:21.3]}
18. Rxe4 {[%clk 0:01:57.8]} 18... Bf6 {[%clk 0:01:22.2]} 19. Nc5 {[%clk
0:01:49.6]} 19... Kh8 {[%clk 0:01:06.6]} 20. Ne6 {[%clk 0:01:29.7]} 20... Bxe6
{[%clk 0:01:04.6]} 21. Rxe6 {[%clk 0:01:31.4]} 21... Rae8 {[%clk 0:00:59.3]} 22.
Rxe8 {[%clk 0:01:32]} 22... Rxe8 {[%clk 0:01:01.2]} 23. Bd2 {[%clk 0:01:33.1]}
23... d3 {[%clk 0:00:57.6]} 24. Qxd3 {[%clk 0:01:34]} 24... Rd8 {[%clk
0:00:24.8]} 25. Qg6 {[%clk 0:01:18.8]} 25... Qxb2 {[%clk 0:00:19.2]} 26. Rb1
{[%clk 0:00:48.3]} 26... Rxd2 {[%clk 0:00:19.7]} 27. Nxd2 {[%clk 0:00:48.9]}
27... Qxd2 {[%clk 0:00:20.5]} 28. Qe8+ {[%clk 0:00:49.8]} 28... Kh7 {[%clk
0:00:19.9]} 29. Qe4+ {[%clk 0:00:50.9]} 29... Kh8 {[%clk 0:00:21.2]} 30. Qe8+
{[%clk 0:00:51.6]} 30... Kh7 {[%clk 0:00:22.5]} 31. Qe4+ {[%clk 0:00:52.6]}
31... Kh8 {[%clk 0:00:23.5]} 32. g3 {[%clk 0:00:53.8]} 32... Qd7 {[%clk
0:00:21.1]} 33. h4 {[%clk 0:00:48]} 33... Bd4 {[%clk 0:00:21.6]} 34. Kg2 {[%clk
0:00:47.5]} 34... Qf7 {[%clk 0:00:22.4]} 35. Qe2 {[%clk 0:00:41.8]} 35... Qd5+
{[%clk 0:00:23]} 36. Kh2 {[%clk 0:00:41.3]} 36... Bb6 {[%clk 0:00:21.9]} 37. Re1
{[%clk 0:00:39.6]} 37... Qf7 {[%clk 0:00:21.6]} 38. f4 {[%clk 0:00:39.4]} 38...
Nd4 {[%clk 0:00:22.3]} 39. Qe8+ {[%clk 0:00:37.8]} 39... Qxe8 {[%clk 0:00:23.2]}
40. Rxe8+ {[%clk 0:00:39.7]} 40... Kh7 {[%clk 0:00:25.1]} 41. Re7 {[%clk
0:00:41.2]} 41... Nb5 {[%clk 0:00:25.9]} 42. a4 {[%clk 0:00:41.2]} 42... Nc3
{[%clk 0:00:27.2]} 43. a5 {[%clk 0:00:38.5]} 43... Bxa5 {[%clk 0:00:28.2]} 44.
Rxb7 {[%clk 0:00:39.5]} 44... Bb6 {[%clk 0:00:29.7]} 45. f5 {[%clk 0:00:40.9]}
45... Nd5 {[%clk 0:00:30.5]} 46. Kg2 {[%clk 0:00:41.4]} 46... h5 {[%clk
0:00:31.6]} 47. Kf3 {[%clk 0:00:42.5]} 47... Nf6 {[%clk 0:00:33.2]} 48. Kf4
{[%clk 0:00:42.1]} 48... Kh6 {[%clk 0:00:31.8]} 49. Ke5 {[%clk 0:00:40.8]} 49...
Bf2 {[%clk 0:00:30]} 50. Kf4 {[%clk 0:00:39.9]} 50... Bb6 {[%clk 0:00:29.3]} 51.
Rb8 {[%clk 0:00:40.4]} 51... Bc7+ {[%clk 0:00:30]} 0-1